fUST/lending_fUST_20260116
["ID","MTS","AMOUNT","RATE_DAILY","PERIOD"]
[402183633,1768572655331,-500.0,0.00027397,120]
[402183634,1768572655342,-500.0,0.00027397,120]
[402183635,1768572655352,-500.0,0.00027397,120]
[402183636,1768572655362,-500.0,0.00027397,120]
[402183637,1768572655373,-500.0,0.00027397,120]
[402183638,1768572655383,-500.0,0.00027397,120]
[402183639,1768572655394,-500.0,0.00027397,120]
[402183640,1768572655404,-500.0,0.00027397,120]
[402183641,1768572655414,-500.0,0.00027397,120]
[402183642,1768572655424,-500.0,0.00027397,120]
[402183643,1768572655435,-500.0,0.00027397,120]
[402183644,1768572655445,-547.68632586,0.00027397,120]
[402183645,1768572655456,-500.0,0.00027397,120]
[402183646,1768572655467,-500.0,0.00027397,120]
[402183647,1768572655477,-500.0,0.00027397,120]
[402183648,1768572655487,-500.0,0.00027397,120]
[402183649,1768572655498,-500.0,0.00027397,120]
[402183650,1768572655508,-500.0,0.00027397,120]
[402183651,1768572655519,-500.0,0.00027397,120]
[402183652,1768572655529,-500.0,0.00027397,120]
[402183653,1768572655540,-500.0,0.00027397,120]
[402183654,1768572655550,-500.0,0.00027397,120]
[402183655,1768572655560,-500.0,0.00027397,120]
[402183656,1768572655571,-500.0,0.00027397,120]
[402183657,1768572655582,-500.0,0.00027397,120]
[402183658,1768572655593,-500.0,0.00027397,120]
[402183659,1768572655603,-500.0,0.00027397,120]
[402183660,1768572655614,-500.0,0.00027397,120]
[402183661,1768572655625,-500.0,0.00027397,120]
[402183662,1768572655636,-500.0,0.00027397,120]
[402183663,1768572655646,-500.0,0.00027397,120]
[402183664,1768572655657,-500.0,0.00027397,120]
[402183665,1768572655668,-500.0,0.00027397,120]
[402183666,1768572655678,-500.0,0.00027397,120]
[402183667,1768572655689,-500.0,0.00027397,120]
[402183668,1768572655700,-500.0,0.00027397,120]
[402183669,1768572655710,-500.0,0.00027397,120]
[402183670,1768572655721,-494.76,0.00027397,120]
[402183671,1768572655732,-500.0,0.00027397,120]
[402183672,1768572655742,-510.055958,0.00027397,120]
[402183673,1768572655753,-848.78,0.00027397,120]
[402183674,1768572655763,-848.78,0.00027397,120]
[402183675,1768572655774,-848.78,0.00027397,120]
[402183676,1768572655785,-848.78,0.00027397,120]
[402183677,1768572655796,-848.78,0.00027397,120]
[402183678,1768572655806,-500.0,0.00027397,2]
[402183679,1768572655817,-848.78,0.00027397,120]
[402183680,1768572655828,-500.0,0.00027397,2]
[402183681,1768572655838,-848.78,0.00027397,120]
[402183682,1768572655849,-500.0,0.00027397,2]
[402183683,1768572655859,-848.78,0.00027397,120]
[402183684,1768572655870,-1608.26,0.00027397,120]
[402183685,1768572655881,-500.0,0.00027397,2]
[402183686,1768572655892,-848.78,0.00027397,120]
[402183687,1768572655902,-1608.26,0.00027397,120]
[402183688,1768572655912,-500.0,0.00027397,2]
[402183689,1768572655922,-848.78,0.00027397,120]
[402183690,1768572655933,-1608.26,0.00027397,120]
[402183691,1768572655943,-500.0,0.00027397,2]
[402183692,1768572655954,-848.78,0.00027397,120]
[402183693,1768572655964,-1608.26,0.00027397,120]
[402183694,1768572655974,-500.0,0.00027397,2]
[402183695,1768572655985,-848.78,0.00027397,120]
[402183696,1768572655996,-1608.26,0.00027397,120]
[402183697,1768572656006,-500.0,0.00027397,2]
[402183698,1768572656016,-1608.26,0.00027397,120]
[402183699,1768572656026,-848.78,0.00027397,120]
[402183700,1768572656036,-500.0,0.00027397,2]
[402183701,1768572656047,-848.78,0.00027397,120]
[402183702,1768572656057,-500.0,0.00027397,2]
[402183703,1768572656067,-848.78,0.00027397,120]
[402183704,1768572656078,-1608.26,0.00027397,120]
[402183705,1768572656089,-515.14043624,0.00027397,2]
[402183706,1768572656099,-1608.26,0.00027397,120]
[402183707,1768572656109,-848.78,0.00027397,120]
[402183708,1768572656120,-550.0488095,0.00027397,120]
[402183709,1768572657267,-171.48,0.00013858,2]
[402183710,1768572657278,-200.06,0.00014724,2]
[402183711,1768572657289,-34.96,0.0001559,2]
[402183712,1768572657412,-193.68,0.0001559,2]
[402183713,1768572657422,-257.22,0.00016456,2]
[402183714,1768572657431,-285.8,0.00017322,2]
[402183715,1768572657442,-151.0,0.00021918,2]
[402183716,1768572657452,-641.1225322,0.00022587,7]
[402183717,1768572657468,-1358.8774678,0.00022587,7]
[402183718,1768572657478,-5835.16881564,0.00023839,2]
[402183719,1768572657488,-151.0,0.00024142,2]
[402183720,1768572657498,-564.0,0.0002465,10]
[402183721,1768572657508,-151.0,0.000249,7]
[402183722,1768572657519,-264.300522,0.00026,7]
[402183723,1768572657528,-1058.2111905,0.00027397,120]
[402183724,1768572657537,-166.35473516,0.00027397,120]
[402183751,1768573802834,151.65,5e-05,2]
[402183752,1768573803175,151.65,5e-05,2]
[402183753,1768573803521,151.65,5e-05,2]
[402183754,1768573803988,151.65,5e-05,2]
[402183755,1768573804344,151.65,5.1e-05,2]
[402183756,1768573804706,151.65,5.1e-05,2]
[402183757,1768573805037,151.65,5.1e-05,2]
[402183758,1768573805363,151.65,5.1e-05,2]
[402183759,1768573805695,151.65,5.1e-05,2]
[402183760,1768573806171,151.65,5.1e-05,2]
[402183761,1768573806497,151.65,5.1e-05,2]
[402183762,1768573807387,151.65,5.2e-05,2]
[402183763,1768573807940,151.65,5.2e-05,2]
[402183764,1768573808058,151.65,5.2e-05,2]
[402183765,1768573808838,151.65,5.2e-05,2]
[402183766,1768573809304,151.65,5.2e-05,2]
[402183767,1768573809639,151.65,5.2e-05,2]
[402183768,1768573810128,151.65,5.3e-05,2]
[402183769,1768573810608,151.65,5.3e-05,2]
[402183770,1768573811079,151.65,5.3e-05,2]
[402183771,1768573811441,151.65,5.3e-05,2]
[402183772,1768573811845,151.65,5.3e-05,2]
[402183773,1768573812178,151.65,5.3e-05,2]
[402183774,1768573812485,151.65,5.3e-05,2]
[402183775,1768573812959,151.65,5.4e-05,2]
[402183776,1768573813260,151.65,5.4e-05,2]
[402183777,1768573813575,151.65,5.4e-05,2]
[402183778,1768573814043,151.65,5.4e-05,2]
[402183779,1768573814399,151.65,5.4e-05,2]
[402183780,1768573815142,151.65,5.4e-05,2]
[402183781,1768573815883,151.65,5.4e-05,2]
[402183782,1768573816739,151.65,5.5e-05,2]
[402183783,1768573817135,151.65,5.5e-05,2]
[402183784,1768573817453,151.65,5.5e-05,2]
[402183785,1768573817768,151.65,5.5e-05,2]
[402183818,1768573838271,-243.09933073,0.00013978,2]
[402183819,1768573838281,-158.0,0.00014,2]
[402183820,1768573838291,-60.88566927,0.00015105,2]
[402183821,1768573838331,-5305.68116738,0.00015105,2]
[402183822,1768573838341,-4376.37661173,0.00015132,2]
[402183823,1768573838351,-166.66666666,0.0001514,2]
[402183824,1768573838361,-2472.80355642,0.0001514,2]
[402183825,1768573838373,-303.01331581,0.00015141,2]
[402183826,1768573838383,-375.01172011,0.00015141,2]
[402183827,1768573838392,-1000000.0,0.00015142,2]
[402183828,1768573838402,-379.49,0.00015232,3]
[402183829,1768573838411,-189.75,0.00015232,3]
[402183830,1768573838421,-569.25,0.00015232,3]
[402183831,1768573838431,-158.0,0.000153,2]
[402183832,1768573838445,-243.22,0.000154,7]
[402183833,1768573838455,-163.39,0.000154,2]
[402183834,1768573838464,-636.10569707,0.000154,30]
[402183835,1768573838474,-158.0,0.000154,2]
[402183836,1768573838483,-163.39,0.000156,2]
[402183837,1768573838493,-163.39,0.000158,2]
[402183838,1768573838503,-286.85721027,0.00015978,2]
[402183839,1768573838512,-163.39,0.00016,2]
[402183840,1768573838521,-215.94196055,0.00016,2]
[402183841,1768573838534,-485.94426381,0.00016009,2]
[402183842,1768573838544,-580.47911139,0.00016009,2]
[402183843,1768573838554,-620.80528485,0.0001617,30]
[402183844,1768573838564,-158.0,0.000162,3]
[402183845,1768573838575,-758.98,0.00016602,3]
[402183846,1768573838585,-379.5,0.00016602,3]
[402183847,1768573838595,-1041.66666667,0.00016764,2]
[402183848,1768573838605,-629.0,0.00016835,2]
[402183849,1768573838614,-2147.0,0.00016835,2]
[402183850,1768573838623,-1367.0,0.00016835,2]
[402183851,1768573838632,-417.0,0.00016835,2]
[402183852,1768573838642,-715.0,0.00016835,2]
[402183853,1768573838657,-198.478,0.00016835,2]
[402183854,1768573838666,-4376.37661173,0.0001687,2]
[402183855,1768573838675,-620.04026424,0.00016979,30]
[402183856,1768573838688,-111527.81167446,0.00017,2]
[402183857,1768573838699,-140511.87845182,0.0001701,3]
[402183858,1768573838708,-180.19821804,0.00017772,2]
[402183859,1768573838718,-7990.7,0.000178,3]
[402183860,1768573838728,-620.00201321,0.00017827,30]
[402183861,1768573838738,-158.0,0.000179,3]
[402183862,1768573838747,-158.0,0.000179,4]
[402183863,1768573838757,-330.6150898,0.00017978,2]
[402183864,1768573838767,-500.0,0.00018231,2]
[402183865,1768573838777,-218.0,0.00018244,2]
[402183866,1768573838786,-500.0,0.00018312,2]
[402183867,1768573838796,-218.0,0.00018336,2]
[402183868,1768573838805,-500.0,0.00018368,2]
[402183869,1768573838815,-728.0,0.00018396,2]
[402183870,1768573838825,-218.0,0.00018431,2]
[402183871,1768573838834,-218.0,0.00018505,2]
[402183872,1768573838844,-266.92718303,0.00018505,2]
[402183873,1768573838853,-218.0,0.00018598,2]
[402183874,1768573838863,-4376.37661173,0.00018608,2]
[402183875,1768573838872,-728.0,0.0001869,2]
[402183876,1768573838882,-218.0,0.00018717,2]
[402183877,1768573838892,-218.0,0.00018772,2]
[402183878,1768573838902,-303.10001603,0.000189,2]
[402183879,1768573838912,-2663.56,0.000189,3]
[402183880,1768573838922,-160.0,0.000189,3]
[402183881,1768573838931,-500.0,0.0001895,7]
[402183882,1768573838942,-500.0,0.0001895,7]
[402183883,1768573838952,-500.0,0.0001895,7]
[402183884,1768573838961,-500.0,0.0001895,7]
[402183885,1768573838971,-500.0,0.0001895,7]
[402183886,1768573838980,-500.0,0.0001895,7]
[402183887,1768573838990,-500.0,0.0001895,7]
[402183888,1768573839000,-500.0,0.0001895,7]
[402183889,1768573839009,-500.0,0.0001895,7]
[402183890,1768573839018,-500.0,0.0001895,7]
[402183891,1768573839028,-500.0,0.0001895,7]
[402183892,1768573839038,-500.0,0.0001895,7]
[402183893,1768573839048,-500.0,0.0001895,7]
[402183894,1768573839057,-500.0,0.0001895,7]
[402183895,1768573839067,-500.0,0.0001895,7]
[402183896,1768573839077,-500.0,0.0001895,7]
[402183897,1768573839086,-500.0,0.0001895,7]
[402183898,1768573839096,-500.0,0.0001895,7]
[402183899,1768573839105,-500.0,0.0001895,7]
[402183900,1768573839115,-500.0,0.0001895,7]
[402183901,1768573839124,-500.0,0.0001895,7]
[402183902,1768573839135,-500.0,0.0001895,7]
[402183903,1768573839144,-500.0,0.0001895,7]
[402183904,1768573839153,-500.0,0.0001895,7]
[402183905,1768573839164,-500.0,0.0001895,7]
[402183906,1768573839173,-500.0,0.0001895,7]
[402183907,1768573839402,-500.0,0.0001895,7]
[402183908,1768573839450,-500.0,0.0001895,7]
[402183909,1768573839461,-500.0,0.0001895,7]
[402183910,1768573839471,-500.0,0.0001895,7]
[402183911,1768573839481,-500.0,0.0001895,7]
[402183912,1768573839494,-500.0,0.0001895,7]
[402183913,1768573839504,-500.0,0.0001895,7]
[402183914,1768573839513,-500.0,0.0001895,7]
[402183915,1768573839522,-500.0,0.0001895,7]
[402183916,1768573839532,-500.0,0.0001895,7]
[402183917,1768573839542,-500.0,0.0001895,7]
[402183918,1768573839551,-500.0,0.0001895,7]
[402183919,1768573839561,-500.0,0.0001895,7]
[402183920,1768573839570,-500.0,0.0001895,7]
[402183921,1768573839579,-500.0,0.0001895,7]
[402183922,1768573839588,-500.0,0.0001895,7]
[402183923,1768573839598,-500.0,0.0001895,7]
[402183924,1768573839607,-500.0,0.0001895,7]
[402183925,1768573839616,-500.0,0.0001895,7]
[402183926,1768573839625,-500.0,0.0001895,7]
[402183927,1768573839635,-500.0,0.0001895,7]
[402183928,1768573839644,-500.0,0.0001895,7]
[402183929,1768573839653,-500.0,0.0001895,7]
[402183930,1768573839665,-500.0,0.0001895,7]
[402183931,1768573839674,-500.0,0.0001895,7]
[402183932,1768573839684,-500.0,0.0001895,7]
[402183933,1768573839693,-500.0,0.0001895,7]
[402183934,1768573839703,-500.0,0.0001895,7]
[402183935,1768573839712,-500.0,0.0001895,7]
[402183936,1768573839722,-500.0,0.0001895,7]
[402183937,1768573839732,-500.0,0.0001895,7]
[402183938,1768573839742,-500.0,0.0001895,7]
[402183939,1768573839751,-500.0,0.0001895,7]
[402183940,1768573839760,-500.0,0.0001895,7]
[402183941,1768573839770,-500.0,0.0001895,7]
[402183942,1768573839779,-500.0,0.0001895,7]
[402183943,1768573839788,-500.0,0.0001895,7]
[402183945,1768573839798,-500.0,0.0001895,7]
[402183946,1768573839807,-500.0,0.0001895,7]
[402183947,1768573839816,-500.0,0.0001895,7]
[402183948,1768573839826,-500.0,0.0001895,7]
[402183949,1768573839835,-500.0,0.0001895,7]
[402183950,1768573839844,-500.0,0.0001895,7]
[402183951,1768573839854,-500.0,0.0001895,7]
[402183952,1768573839863,-500.0,0.0001895,7]
[402183953,1768573839873,-500.0,0.0001895,7]
[402183954,1768573839882,-500.0,0.0001895,7]
[402183955,1768573839892,-500.0,0.0001895,7]
[402183956,1768573839901,-500.0,0.0001895,7]
[402183957,1768573839910,-500.0,0.0001895,7]
[402183958,1768573839919,-500.0,0.0001895,7]
[402183959,1768573839929,-500.0,0.0001895,7]
[402183960,1768573839939,-500.0,0.0001895,7]
[402183961,1768573839948,-500.0,0.0001895,7]
[402183962,1768573839957,-500.0,0.0001895,7]
[402183963,1768573839966,-500.0,0.0001895,7]
[402183964,1768573839975,-500.0,0.0001895,7]
[402183965,1768573839984,-500.0,0.0001895,7]
[402183966,1768573839994,-500.0,0.0001895,7]
[402183967,1768573840003,-500.0,0.0001895,7]
[402183968,1768573840012,-500.0,0.0001895,7]
[402183969,1768573840021,-500.0,0.0001895,7]
[402183970,1768573840030,-500.0,0.0001895,7]
[402183971,1768573840040,-500.0,0.0001895,7]
[402183972,1768573840049,-271.28,0.0001895,7]
[402183973,1768573840058,-218.0,0.00018971,2]
[402183974,1768573840067,-2024.58642618,0.00019,2]
[402183975,1768573840076,-1941.83327817,0.0001902,2]
[402183976,1768573840085,-218.0,0.00019083,2]
[402183977,1768573840094,-218.0,0.00019085,2]
[402183978,1768573840103,-303.10001603,0.00019089,2]
[402183979,1768573840113,-445.202766,0.00019091,2]
[402183980,1768573840122,-162.380719,0.00019091,2]
[402183981,1768573840132,-223.13477496,0.00019091,2]
[402183982,1768573840141,-168.3888056,0.00019091,2]
[402183983,1768573840150,-174.61919141,0.00019091,2]
[402183984,1768573840159,-181.08010149,0.00019091,2]
[402183985,1768573840168,-187.78006525,0.00019091,2]
[402183986,1768573840177,-194.72792766,0.00019091,2]
[402183987,1768573840187,-201.93286099,0.00019091,2]
[402183988,1768573840196,-209.40437684,0.00019091,2]
[402183989,1768573840205,-217.15233878,0.00019091,2]
[402183990,1768573840214,-2150.738,0.00019091,2]
[402183991,1768573840223,-225.18697532,0.00019091,2]
[402183992,1768573840232,-233.51889341,0.00019091,2]
[402183993,1768573840241,-242.15909246,0.00019091,2]
[402183994,1768573840250,-251.11897888,0.00019091,2]
[402183995,1768573840259,-260.4103811,0.00019091,2]
[402183996,1768573840268,-159.42657842,0.00019091,2]
[402183997,1768573840278,-728.0,0.00019128,2]
[402183998,1768573840286,-218.0,0.00019146,2]
[402183999,1768573840296,-218.0,0.00019147,2]
[402184000,1768573840305,-845.5406,0.00019178,2]
[402184001,1768573840314,-5000.0,0.00019178,2]
[402184002,1768573840323,-2294.64125551,0.00019178,2]
[402184003,1768573840332,-218.0,0.0001918,2]
[402184004,1768573840341,-3054.34,0.000192,2]
[402184005,1768573840350,-18434.41,0.000192,2]
[402184006,1768573840359,-176.42,0.000192,2]
[402184007,1768573840368,-167.99,0.000192,2]
[402184008,1768573840376,-303.10001603,0.00019278,2]
[402184010,1768573840386,-2319.59452911,0.00019294,2]
[402184012,1768573840396,-218.0,0.00019308,2]
[402184014,1768573840405,-218.0,0.00019397,2]
[402184015,1768573840414,-218.0,0.00019455,2]
[402184016,1768573840423,-218.0,0.00019458,2]
[402184017,1768573840432,-303.10001603,0.00019467,2]
[402184019,1768573840442,-218.0,0.00019474,2]
[402184021,1768573840451,-218.0,0.00019528,2]
[402184023,1768573840460,-218.0,0.00019557,2]
[402184025,1768573840469,-513.1394,0.00019589,3]
[402184027,1768573840478,-208.52,0.000196,2]
[402184029,1768573840487,-461.67526834,0.00019639,2]
[402184031,1768573840497,-2230.315306,0.00019639,2]
[402184032,1768573840506,-303.10001603,0.00019656,2]
[402184034,1768573840517,-218.0,0.00019737,2]
[402184036,1768573840527,-629.0,0.00019835,2]
[402184038,1768573840536,-2147.0,0.00019835,2]
[402184040,1768573840545,-1367.0,0.00019835,2]
[402184042,1768573840554,-417.0,0.00019835,2]
[402184045,1768573840563,-715.0,0.00019835,2]
[402184048,1768573840572,-178.0,0.00019835,2]
[402184050,1768573840581,-454.65002405,0.00019845,4]
[402184053,1768573840590,-218.0,0.00019916,2]
[402184056,1768573840600,-218.0,0.00019938,2]
[402184058,1768573840609,-338.4976631,0.00019945,3]
[402184062,1768573840619,-501.9572,0.0001995,2]
[402184063,1768573840628,-500.0,0.0001995,2]
[402184067,1768573840638,-1000.0,0.0001996,5]
[402184069,1768573840650,-374.37296933,0.00019978,2]
[402184072,1768573840660,-1000.0,0.0001998,5]
[402184075,1768573840669,-27687.44472401,0.0002,2]
[402184079,1768573840678,-1015.0,0.0002,2]
[402184082,1768573840691,-1000.0,0.0002,5]
[402184084,1768573840701,-250.0,0.0002,10]
[402184087,1768573840710,-1100.20017902,0.0002,2]
[402184090,1768573840721,-254.04884001,0.0002,21]
[402184092,1768573840731,-64001.23596846,0.0002,2]
[402184094,1768573840739,-2009.86651923,0.0002,2]
[402184096,1768573840748,-481.754431,0.0002,7]
[402184097,1768573840758,-2000.0,0.0002,7]
[402184099,1768573840769,-218.0,0.00020017,2]
[402184102,1768573840778,-303.10001583,0.00020034,4]
[402184103,1768573840788,-218.0,0.00020036,2]
[402184105,1768573840797,-250.0,0.000201,10]
[402184107,1768573840807,-376.63,0.000201,7]
[402184109,1768573840817,-478.75725327,0.00020187,2]
[402184112,1768573840827,-2312.83697232,0.00020187,2]
[402184113,1768573840836,-250.0,0.000202,10]
[402184115,1768573840846,-250.0,0.000203,10]
[402184117,1768573840855,-241.31051,0.000203,7]
[402184119,1768573840865,-4376.37661173,0.00020346,2]
[402184121,1768573840874,-250.0,0.000204,10]
[402184123,1768573840883,-250.0,0.000205,10]
[402184125,1768573840893,-2000.0,0.000205,7]
[402184127,1768573840902,-250.0,0.000206,10]
[402184129,1768573840912,-176.42,0.000207,2]
[402184131,1768573840921,-250.0,0.000207,10]
[402184133,1768573840931,-493.23310299,0.00020735,2]
[402184135,1768573840944,-2398.4119403,0.00020735,2]
[402184137,1768573840954,-5000.0,0.00020752,2]
[402184139,1768573840963,-207.549177,0.00020752,7]
[402184141,1768573840972,-250.0,0.000208,10]
[402184143,1768573840981,-904.914413,0.000209,7]
[402184145,1768573840991,-250.0,0.000209,10]
[402184147,1768573841000,-361.965765,0.000209,7]
[402184148,1768573841009,-250.0,0.00021,10]
[402184150,1768573841019,-481.57939059,0.00021,10]
[402184152,1768573841028,-2000.0,0.00021,7]
[402184154,1768573841037,-500.0,0.00021,7]
[402184156,1768573841047,-193.0,0.00021041,3]
[402184158,1768573841056,-250.0,0.000211,10]
[402184160,1768573841065,-2487.15318209,0.00021283,2]
[402184162,1768573841074,-160.0,0.00021311,2]
[402184164,1768573841083,-2000.0,0.000215,7]
[402184166,1768573841092,-151.0,0.00021635,2]
[402184168,1768573841101,-2663.56,0.000217,3]
[402184170,1768573841111,-2579.17784983,0.00021831,2]
[402184172,1768573841120,-500.0,0.00021918,5]
[402184174,1768573841129,-459.6237502,0.00021918,3]
[402184176,1768573841139,-3320.786834,0.00021918,30]
[402184178,1768573841150,-498.118025,0.00021918,30]
[402184180,1768573841159,-418.13084886,0.00021978,2]
[402184182,1768573841168,-228.20144067,0.00022,30]
[402184184,1768573841177,-15000.0,0.00022,2]
[402184186,1768573841192,-84001.43263378,0.00022,2]
[402184188,1768573841201,-583.66664759,0.00022,20]
[402184190,1768573841210,-2000.0,0.00022,7]
[402184192,1768573841219,-4376.37661173,0.00022083,2]
[402184194,1768573841228,-195.0,0.00022137,6]
[402184196,1768573841237,-175.02,0.00022188,2]
[402184198,1768573841246,-500.0,0.00022192,5]
[402184200,1768573841255,-243.28390715,0.0002222,2]
[402184202,1768573841268,-5000.0,0.00022377,2]
[402184204,1768573841277,-2674.60743027,0.00022379,2]
[402184205,1768573841287,-500.0,0.00022466,5]
[402184208,1768573841300,-300.0,0.00022466,2]
[402184210,1768573841310,-200.0,0.00022466,2]
[402184212,1768573841320,-250.0,0.00022466,2]
[402184214,1768573841330,-2000.0,0.00022481,7]
[402184216,1768573841339,-2000.0,0.0002249,7]
[402184218,1768573841348,-2000.0,0.00022499,7]
[402184220,1768573841357,-8301.967087,0.00022499,30]
[402184222,1768573841367,-208.52,0.000225,7]
[402184224,1768573841376,-18434.41,0.000225,2]
[402184226,1768573841386,-3054.34,0.000225,14]
[402184228,1768573841395,-2000.0,0.000225,7]
[402184229,1768573841404,-2000.0,0.00022508,7]
[402184231,1768573841416,-2000.0,0.00022516,7]
[402184233,1768573841425,-2000.0,0.00022525,7]
[402184235,1768573841436,-2000.0,0.00022528,7]
[402184237,1768573841445,-200.0,0.00022528,30]
[402184239,1768573841455,-200.0,0.00022528,30]
[402184241,1768573841464,-200.0,0.00022528,30]
[402184243,1768573841473,-2000.0,0.00022534,7]
[402184245,1768573841482,-2000.0,0.00022537,7]
[402184247,1768573841492,-2000.0,0.00022543,7]
[402184249,1768573841501,-2000.0,0.00022545,7]
[402184251,1768573841510,-2000.0,0.00022552,7]
[402184253,1768573841520,-2000.0,0.00022554,7]
[402184255,1768573841529,-2000.0,0.0002256,7]
[402184257,1768573841538,-203.932237,0.0002256,30]
[402184259,1768573841547,-2000.0,0.00022563,7]
[402184261,1768573841557,-2000.0,0.00022569,7]
[402184263,1768573841566,-2000.0,0.00022572,7]
[402184265,1768573841575,-2000.0,0.00022578,7]
[402184267,1768573841584,-2000.0,0.00022581,7]
[402184269,1768573841594,-2000.0,0.00022589,7]
[402184271,1768573841603,-151.0,0.00022595,2]
[402184273,1768573841612,-2000.0,0.00022598,7]
[402184274,1768573841622,-2000.0,0.00022607,7]
[402184276,1768573841631,-2000.0,0.00022616,7]
[402184277,1768573841641,-2000.0,0.00022625,7]
[402184278,1768573841651,-2000.0,0.00022633,7]
[402184279,1768573841661,-2000.0,0.00022642,7]
[402184280,1768573841673,-2000.0,0.00022651,7]
[402184281,1768573841684,-2000.0,0.0002266,7]
[402184282,1768573841693,-2000.0,0.00022669,7]
[402184283,1768573841703,-2000.0,0.00022677,7]
[402184284,1768573841712,-2000.0,0.00022686,7]
[402184285,1768573841722,-2000.0,0.00022695,7]
[402184286,1768573841731,-2000.0,0.00022704,7]
[402184287,1768573841742,-2000.0,0.00022713,7]
[402184288,1768573841751,-2000.0,0.00022721,7]
[402184289,1768573841760,-2000.0,0.0002273,7]
[402184290,1768573841769,-2000.0,0.00022739,7]
[402184291,1768573841779,-500.0,0.0002274,5]
[402184292,1768573841788,-170.317,0.00022835,2]
[402184293,1768573841797,-2147.0,0.00022835,2]
[402184294,1768573841807,-1367.0,0.00022835,2]
[402184295,1768573841816,-417.0,0.00022835,2]
[402184296,1768573841826,-715.0,0.00022835,2]
[402184297,1768573841835,-178.0,0.00022835,2]
[402184298,1768573841845,-2773.56790519,0.00022927,2]
[402184299,1768573841854,-282.0,0.00023,7]
[402184300,1768573841863,-2000.0,0.00023,7]
[402184301,1768573841872,-500.0,0.00023014,5]
[402184302,1768573841881,-450.0,0.00023014,2]
[402184303,1768573841890,-261.16480415,0.00023014,2]
[402184304,1768573841900,-350.0,0.00023014,2]
[402184305,1768573841909,-1000.0,0.000231,7]
[402184306,1768573841918,-158.0,0.000231,7]
[402184307,1768573841927,-158.0,0.000231,5]
[402184308,1768573841937,-565.0,0.00023168,10]
[402184309,1768573841947,-1591.0,0.00023168,10]
[402184310,1768573841956,-916.0,0.00023168,10]
[402184311,1768573841965,-196.0,0.00023233,9]
[402184312,1768573841978,-500.0,0.00023288,5]
[402184313,1768573841987,-282.0,0.00023288,7]
[402184314,1768573841997,-160.0,0.00023381,3]
[402184315,1768573842006,-161.34679132,0.00023381,5]
[402184316,1768573842016,-1041.66666667,0.000234,3]
[402184317,1768573842026,-2876.18991768,0.00023475,2]
[402184318,1768573842035,-500.0,0.000235,2]
[402184319,1768573842044,-2000.0,0.000235,7]
[402184320,1768573842053,-7718.13585009,0.00023542,2]
[402184321,1768573842063,-151.0,0.00023556,2]
[402184322,1768573842072,-500.0,0.00023562,5]
[402184323,1768573842082,-600.0,0.00023562,2]
[402184324,1768573842091,-473.17242877,0.00023562,2]
[402184325,1768573842102,-176.42,0.000236,7]
[402184326,1768573842111,-4376.37661173,0.00023821,2]
[402184327,1768573842122,-500.0,0.00023836,5]
[402184328,1768573842132,-461.88872839,0.00023978,2]